bitfinex/quotes_SOLUSD_20230105
["timestamp","ask_amount","ask_price","bid_price","bid_amount"]
[1672953072136,20.0,13.628,13.617,15.31211266]
[1672953073068,20.0,13.626,13.617,15.31211266]
[1672953073720,55.08,13.627,13.617,15.31211266]
[1672953074124,55.07,13.628,13.617,15.31211266]
[1672953074350,170.4671,13.629,13.617,15.31211266]
[1672953074971,115.3971,13.629,13.617,15.31211266]
[1672953075703,20.0,13.628,13.617,15.31211266]
[1672953077278,170.4671,13.629,13.617,15.31211266]
[1672953082758,170.4671,13.629,13.616,15.31211266]
[1672953082967,170.4671,13.629,13.617,20.0]
[1672953083591,170.4671,13.629,13.616,35.31211266]
[1672953083808,170.4671,13.629,13.616,15.31211266]
[1672953084025,170.4671,13.629,13.616,35.31211266]
[1672953084974,170.4671,13.629,13.617,15.31211266]
[1672953086007,20.0,13.628,13.615,119.5684]
[1672953086217,55.08,13.627,13.615,119.5684]
[1672953086748,55.08,13.627,13.617,20.0]
[1672953086967,55.08,13.627,13.616,35.31211266]
[1672953087182,55.08,13.627,13.616,15.31211266]
[1672953088123,55.07,13.628,13.616,35.31211266]
[1672953090648,55.07,13.628,13.616,15.31211266]
[1672953092954,55.07,13.628,13.616,35.31211266]
[1672953093908,55.07,13.628,13.616,15.31211266]
[1672953094139,55.07,13.628,13.616,35.31211266]
[1672953094445,55.07,13.628,13.617,15.31211266]
[1672953094759,55.07,13.628,13.618,20.0]
[1672953094970,55.07,13.628,13.617,15.31211266]
[1672953100746,55.07,13.628,13.618,20.0]
[1672953101583,55.07,13.628,13.617,121.50378103]
[1672953110629,170.4671,13.629,13.618,15.32054513]
[1672953112947,170.4671,13.629,13.618,35.32054513]
[1672953113268,115.3971,13.629,13.619,35.32054513]
[1672953113579,115.3971,13.629,13.619,90.62823063]
[1672953113789,115.3971,13.629,13.62,20.0]
[1672953114001,55.04,13.635,13.62,20.0]
[1672953114193,20.0,13.634,13.62,20.0]
[1672953114411,55.05,13.633,13.62,159.8922135]
[1672953114615,171.1143,13.635,13.622,20.0]
[1672953114819,116.0743,13.635,13.622,20.0]
[1672953115033,20.0,13.633,13.623,20.0]
[1672953115241,55.05,13.634,13.623,20.0]
[1672953115451,55.05,13.634,13.623,35.32054513]
[1672953120522,171.1143,13.635,13.623,35.32054513]
[1672953120717,171.1143,13.635,13.624,20.0]
[1672953120930,116.0743,13.635,13.626,20.0]
[1672953121350,116.0743,13.635,13.626,35.32054513]
[1672953122196,55.03,13.639,13.626,141.5122135]
[1672953123249,55.03,13.639,13.626,189.96929718]
[1672953123466,55.02,13.641,13.626,189.96929718]
[1672953124605,20.0,13.64,13.626,189.96929718]
[1672953124815,55.03,13.639,13.626,189.96929718]
[1672953125026,20.0,13.64,13.626,189.96929718]
[1672953128397,55.03,13.639,13.626,189.96929718]
[1672953128591,55.03,13.639,13.626,169.96929718]
[1672953128592,20.0,13.638,13.626,169.96929718]
[1672953129248,75.02,13.64,13.626,169.96929718]
[1672953131670,75.02,13.64,13.626,121.5122135]
[1672953131878,20.0,13.64,13.626,121.5122135]
[1672953133662,75.02,13.641,13.626,121.5122135]
[1672953134184,91.84,13.64,13.625,20.0]
[1672953134503,75.03,13.639,13.623,20.0]
[1672953136617,75.03,13.639,13.623,40.0]
[1672953137228,75.03,13.639,13.623,20.0]
[1672953138182,75.03,13.639,13.623,40.0]
[1672953139644,75.03,13.639,13.623,20.0]
[1672953140184,75.03,13.639,13.623,40.0]
[1672953142191,75.03,13.639,13.623,20.0]
[1672953144914,75.03,13.639,13.624,35.3915245]
[1672953145127,75.03,13.639,13.624,15.3915245]
[1672953145333,75.03,13.639,13.625,20.0]
[1672953149525,75.03,13.639,13.623,20.0]
[1672953149853,387.03,13.639,13.623,20.0]
[1672953150059,18.21,13.63,13.617,59.49617989]
[1672953150276,20.0,13.628,13.617,44.10465539]
[1672953150473,115.1082,13.629,13.617,44.10465539]
[1672953152278,115.1082,13.629,13.618,15.3915245]
[1672953152800,115.1082,13.629,13.618,35.3915245]
[1672953153198,115.1082,13.629,13.619,15.3915245]
[1672953159612,170.1782,13.629,13.619,15.3915245]
[1672953160135,115.1082,13.629,13.619,15.3915245]
[1672953160344,170.1782,13.629,13.619,15.3915245]
[1672953161928,115.1082,13.629,13.619,15.3915245]
[1672953163185,20.0,13.627,13.619,15.3915245]
[1672953163393,55.07,13.628,13.619,15.3915245]
[1672953163604,20.0,13.63,13.619,15.3915245]
[1672953163825,20.0,13.628,13.619,15.3915245]
[1672953165199,20.0,13.628,13.617,44.10465539]
[1672953165412,20.0,13.628,13.618,35.3915245]
[1672953165619,20.0,13.628,13.618,15.3915245]
[1672953166020,20.0,13.628,13.615,119.5684]
[1672953166247,55.07,13.629,13.616,35.3915245]
[1672953166578,55.06,13.632,13.617,64.10465539]
[1672953166771,20.0,13.638,13.617,167.86942457]
[1672953166772,20.0,13.633,13.617,167.86942457]
[1672953166979,55.06,13.632,13.619,20.0]
[1672953167179,55.06,13.632,13.62,18.35]
[1672953167389,55.03,13.639,13.621,22.753]
[1672953167608,110.6666,13.649,13.63,18.38]
[1672953167811,110.6666,13.649,13.631,20.0]
[1672953167812,20.0,13.648,13.631,20.0]
[1672953168221,55.0,13.647,13.631,156.48956618]
[1672953168448,20.0,13.646,13.632,121.11285894]
[1672953168661,20.0,13.639,13.623,25.352]
[1672953168855,55.03,13.638,13.624,131.7433]
[1672953169072,55.03,13.638,13.626,15.37670724]
[1672953169278,20.0,13.637,13.626,15.37670724]
[1672953169932,55.04,13.636,13.626,15.37670724]
[1672953170544,55.03,13.638,13.63,18.38]
[1672953170759,55.02,13.641,13.63,18.38]
[1672953170985,55.02,13.641,13.631,15.37670724]
[1672953171197,55.02,13.641,13.632,20.0]
[1672953171402,20.0,13.642,13.632,20.0]
[1672953172141,55.01,13.643,13.633,15.37670724]
[1672953172563,55.01,13.643,13.634,20.0]
[1672953172989,55.01,13.643,13.634,35.37670724]
[1672953174664,20.0,13.643,13.634,97.07715417]
[1672953175179,20.0,13.643,13.634,81.70044693]
[1672953176022,20.0,13.643,13.634,20.0]
[1672953176437,20.0,13.643,13.632,20.0]
[1672953176859,20.0,13.643,13.633,15.37670724]
[1672953177089,55.01,13.644,13.634,20.0]
[1672953177290,172.2238,13.645,13.634,81.70044693]
[1672953177497,20.0,13.644,13.634,97.07715417]
[1672953177710,55.01,13.643,13.634,97.07715417]
[1672953177921,20.0,13.642,13.634,97.07715417]
[1672953178351,55.01,13.643,13.634,97.07715417]
[1672953180225,55.01,13.643,13.634,77.07715417]
[1672953180436,55.01,13.643,13.623,149.83656776]
[1672953180437,18.25,13.64,13.623,20.0]
[1672953180753,20.0,13.638,13.626,20.0]
[1672953181178,55.03,13.639,13.627,15.37670724]
[1672953183190,18.25,13.64,13.627,15.37670724]
[1672953183703,55.02,13.641,13.627,15.37670724]
[1672953183912,20.0,13.641,13.627,15.37670724]
[1672953184118,20.0,13.639,13.627,15.37670724]
[1672953184356,55.02,13.64,13.627,77.07715417]
[1672953184875,55.02,13.64,13.629,20.0]
[1672953185283,55.02,13.64,13.63,15.37670724]
[1672953186244,55.02,13.641,13.63,15.37670724]
[1672953186455,55.02,13.642,13.63,15.37670724]
[1672953186667,55.02,13.642,13.632,20.0]
[1672953186858,112.2348,13.643,13.633,20.0]
[1672953187069,112.2348,13.643,13.633,35.37670724]
[1672953187275,112.2348,13.643,13.634,15.37670724]
[1672953187497,55.0,13.646,13.634,15.37670724]
[1672953187498,55.0,13.646,13.635,40.0]
[1672953187700,20.0,13.647,13.635,20.0]
[1672953188026,55.0,13.646,13.635,20.0]
[1672953188882,54.99,13.648,13.635,20.0]
[1672953189283,54.99,13.648,13.636,15.37670724]
[1672953191918,54.99,13.648,13.636,77.07715417]
[1672953192134,54.99,13.649,13.636,132.63177363]
[1672953192456,54.99,13.649,13.638,20.0]
[1672953192890,95.0663,13.65,13.639,145.81030108]
[1672953193280,95.0663,13.65,13.641,20.0]
[1672953193611,95.0663,13.65,13.641,15.37670724]
[1672953194023,54.99,13.649,13.637,46.33695451]
[1672953194238,54.97,13.653,13.64,15.37670724]
[1672953194451,20.0,13.652,13.64,15.37670724]
[1672953194661,20.0,13.65,13.64,15.37670724]
[1672953195072,54.98,13.651,13.64,15.37670724]
[1672953195497,20.0,13.649,13.64,15.37670724]
[1672953195697,112.8457,13.65,13.64,15.37670724]
[1672953197267,54.97,13.653,13.64,15.37670724]
[1672953197477,20.0,13.652,13.64,15.37670724]
[1672953197693,20.0,13.65,13.64,15.37670724]
[1672953198435,54.98,13.651,13.64,15.37670724]
[1672953198635,20.0,13.65,13.64,15.37670724]
[1672953198846,20.0,13.648,13.64,15.37670724]
[1672953199686,54.99,13.649,13.64,15.37670724]
[1672953201708,20.0,13.648,13.635,150.43359384]
[1672953202017,20.0,13.648,13.636,15.37670724]
[1672953202215,20.0,13.648,13.636,35.37670724]
[1672953202431,20.0,13.648,13.636,15.37670724]
[1672953203485,20.0,13.648,13.635,20.0]
[1672953203682,20.0,13.646,13.631,20.0]
[1672953203899,20.0,13.646,13.632,20.0]
[1672953204118,55.0,13.645,13.63,40.0]
[1672953204317,20.0,13.644,13.63,40.0]
[1672953204739,20.0,13.642,13.63,20.0]
[1672953205468,24.43,13.64,13.62,24.45]
[1672953205684,20.0,13.638,13.623,20.0]
[1672953205893,55.04,13.637,13.624,20.0]
[1672953206094,55.04,13.637,13.624,35.37670724]
[1672953206645,55.04,13.637,13.625,15.37670724]
[1672953207073,20.0,13.638,13.625,15.37670724]
[1672953207280,55.04,13.637,13.625,15.37670724]
[1672953207491,20.0,13.636,13.625,15.37670724]
[1672953207687,133.6443,13.636,13.625,15.37670724]
[1672953209594,20.0,13.634,13.625,15.37670724]
[1672953210851,55.04,13.635,13.625,15.37670724]
[1672953213254,20.0,13.634,13.616,56.38954916]
[1672953213467,20.0,13.632,13.613,20.0]
[1672953213690,55.06,13.631,13.616,15.37670724]
[1672953213905,20.0,13.63,13.617,20.0]
[1672953214114,20.0,13.628,13.617,20.0]
[1672953214324,20.0,13.628,13.618,15.37670724]
[1672953214850,173.8148,13.629,13.618,15.37670724]
[1672953225893,20.0,13.628,13.618,15.37670724]
[1672953226103,20.0,13.626,13.618,15.37670724]
[1672953226315,55.08,13.627,13.618,15.37670724]
[1672953227475,20.0,13.627,13.618,15.37670724]
[1672953227876,55.08,13.626,13.618,15.37670724]
[1672953228075,55.08,13.627,13.618,15.37670724]
[1672953228625,20.0,13.627,13.618,15.37670724]
[1672953229041,55.07,13.628,13.618,15.37670724]
[1672953230211,20.0,13.627,13.618,15.37670724]
[1672953230394,20.0,13.627,13.613,9.803]
[1672953230739,20.0,13.627,13.617,20.0]
[1672953230958,55.07,13.628,13.617,20.0]
[1672953231259,55.07,13.628,13.618,15.37670724]
[1672953234501,118.7448,13.629,13.618,15.37670724]
[1672953235564,55.06,13.631,13.618,15.37670724]
[1672953235780,20.0,13.631,13.618,15.37670724]
[1672953235983,55.06,13.63,13.618,15.37670724]
[1672953236182,20.0,13.629,13.618,15.37670724]
[1672953236396,20.0,13.627,13.618,15.37670724]
[1672953236705,55.07,13.628,13.618,15.37670724]
[1672953237981,20.0,13.629,13.618,15.37670724]
[1672953238181,55.07,13.628,13.618,15.37670724]
[1672953239675,20.0,13.629,13.618,15.37670724]
[1672953239983,55.07,13.628,13.618,15.37670724]
[1672953240188,20.0,13.627,13.618,15.37670724]
[1672953240505,55.07,13.628,13.618,15.37670724]
[1672953242396,20.0,13.629,13.618,15.37670724]
[1672953242608,55.07,13.628,13.618,15.37670724]
[1672953243247,55.07,13.628,13.615,112.4084]
[1672953243666,55.07,13.628,13.616,16.13315398]
[1672953243858,20.0,13.627,13.615,112.4084]
[1672953244068,20.0,13.625,13.615,112.4084]
[1672953245015,55.08,13.626,13.615,112.4084]
[1672953246499,20.0,13.626,13.615,112.4084]
[1672953246907,55.08,13.627,13.615,112.4084]
[1672953247339,20.0,13.627,13.615,112.4084]
[1672953247549,55.08,13.626,13.615,112.4084]
[1672953248389,20.0,13.627,13.615,112.4084]
[1672953248605,55.07,13.628,13.616,20.0]
[1672953249350,172.2443,13.629,13.617,16.13315398]
[1672953260496,172.2443,13.629,13.616,20.0]
[1672953260822,172.2443,13.629,13.616,92.52270314]
[1672953261126,172.2443,13.629,13.618,20.0]
[1672953261528,172.2443,13.629,13.619,16.13315398]
[1672953262593,55.07,13.629,13.62,38.38]
[1672953262794,55.04,13.635,13.62,84.71695451]
[1672953263006,55.04,13.635,13.622,20.0]
[1672953263216,55.04,13.635,13.624,20.0]
[1672953263421,55.04,13.635,13.625,20.0]
[1672953263636,55.04,13.635,13.625,36.13315398]
[1672953263847,55.04,13.635,13.626,16.13315398]
[1672953269851,55.04,13.635,13.622,20.0]
[1672953270050,18.29,13.63,13.615,112.4084]
[1672953270256,165.4996,13.629,13.615,112.4084]
[1672953271003,20.0,13.628,13.614,114.1758]
[1672953271219,55.08,13.627,13.611,114.1758]
[1672953271431,171.1392,13.627,13.61,18.22]
[1672953271749,18.38,13.62,13.606,114.1758]
[1672953271943,55.11,13.619,13.606,114.1758]
[1672953272581,20.0,13.618,13.606,114.1758]
[1672953272793,55.12,13.617,13.606,114.1758]
[1672953273203,55.11,13.619,13.607,20.0]
[1672953273838,20.0,13.619,13.607,20.0]
[1672953274049,55.11,13.618,13.607,20.0]
[1672953274683,55.11,13.618,13.606,114.1758]
[1672953276158,20.0,13.617,13.606,114.1758]
[1672953276358,55.12,13.616,13.606,114.1758]
[1672953276570,20.0,13.617,13.606,114.1758]
[1672953276780,20.0,13.617,13.601,109.7372]
[1672953276984,20.0,13.617,13.603,20.0]
[1672953277826,20.0,13.615,13.603,20.0]
[1672953278682,139.5349,13.615,13.603,20.0]
[1672953279431,119.5349,13.615,13.603,20.0]
[1672953279644,55.11,13.618,13.603,40.0]
[1672953279825,55.11,13.619,13.604,21.5716144]
[1672953280036,20.0,13.618,13.605,20.0]
[1672953280256,55.11,13.619,13.605,20.0]
[1672953281941,20.0,13.619,13.605,20.0]
[1672953283718,20.0,13.617,13.604,21.5716144]
[1672953284166,55.12,13.616,13.604,21.5716144]
[1672953285298,119.725,13.615,13.604,21.5716144]
[1672953287526,119.725,13.615,13.604,1.5716144]
[1672953290051,55.11,13.618,13.604,21.5716144]
[1672953290241,55.11,13.618,13.605,20.0]
[1672953290451,20.0,13.618,13.605,20.0]
[1672953290661,55.12,13.617,13.605,20.0]
[1672953292987,20.0,13.617,13.605,20.0]
[1672953293184,55.12,13.616,13.605,20.0]
[1672953293396,55.12,13.616,13.604,21.5716144]
[1672953294358,20.0,13.614,13.604,21.5716144]
[1672953294573,20.0,13.614,13.604,1.5716144]
[1672953294775,116.4022,13.615,13.604,1.5716144]
[1672953295095,116.4022,13.615,13.604,21.5716144]
[1672953295516,116.4022,13.615,13.605,20.0]
[1672953298872,55.11,13.619,13.606,20.0]
[1672953299067,55.11,13.62,13.606,20.0]
[1672953300352,79.56,13.62,13.605,20.0]
[1672953300662,20.0,13.619,13.605,20.0]
[1672953300855,55.11,13.618,13.605,20.0]
[1672953301066,20.0,13.617,13.605,20.0]
[1672953301276,55.12,13.616,13.605,20.0]
[1672953301601,20.0,13.615,13.605,20.0]
[1672953301827,118.5617,13.615,13.604,21.5716144]
[1672953302244,55.11,13.618,13.605,20.0]
[1672953302457,20.0,13.619,13.605,20.0]
[1672953302671,55.09,13.625,13.605,20.0]
[1672953302868,118.6287,13.625,13.607,20.0]
[1672953303084,55.09,13.624,13.608,20.0]
[1672953303296,55.09,13.624,13.61,18.4]
[1672953303498,55.09,13.624,13.611,20.0]
[1672953303709,55.09,13.624,13.611,70.75421935]
[1672953303927,55.09,13.624,13.612,20.0]
[1672953304134,55.09,13.624,13.613,20.0]
[1672953305094,20.0,13.621,13.612,20.0]
[1672953306134,168.8456,13.622,13.612,20.0]
[1672953306556,20.0,13.62,13.6,112.14]
[1672953306755,55.11,13.619,13.611,53.47505191]
[1672953306961,55.11,13.619,13.612,20.0]
[1672953307592,55.11,13.619,13.606,20.0]
[1672953307801,55.11,13.619,13.605,20.0]
[1672953309814,166.9888,13.619,13.605,20.0]
[1672953311391,20.0,13.618,13.604,1.5716144]
[1672953311605,55.12,13.617,13.604,21.5716144]
[1672953311818,20.0,13.616,13.604,21.5716144]
[1672953312033,20.0,13.614,13.604,21.5716144]
[1672953312344,174.8478,13.615,13.604,21.5716144]
[1672953312559,119.7178,13.615,13.604,21.5716144]
[1672953313196,119.7178,13.615,13.605,20.0]
[1672953314545,20.0,13.614,13.604,21.5716144]
[1672953314761,55.13,13.614,13.604,21.5716144]
[1672953315296,55.13,13.614,13.605,20.0]
[1672953315510,119.7178,13.615,13.605,20.0]
[1672953316032,55.13,13.614,13.605,20.0]
[1672953316218,55.13,13.614,13.604,21.5716144]
[1672953316432,55.13,13.614,13.604,41.5716144]
[1672953317291,55.13,13.614,13.604,21.5716144]
[1672953318545,55.13,13.614,13.604,41.5716144]
[1672953319076,55.13,13.614,13.604,21.5716144]
[1672953327790,20.0,13.613,13.604,1.5716144]
[1672953328003,20.0,13.611,13.604,1.5716144]
[1672953328422,55.14,13.612,13.604,1.5716144]
[1672953328633,18.4,13.61,13.604,1.5716144]
[1672953328953,20.0,13.608,13.604,1.5716144]
[1672953329163,20.0,13.606,13.604,1.5716144]
[1672953329386,55.17,13.605,13.604,1.5716144]
[1672953329786,55.14,13.612,13.604,1.5716144]
[1672953330213,75.13,13.613,13.604,1.5716144]
[1672953330413,20.0,13.612,13.604,1.5716144]
[1672953330620,55.14,13.611,13.604,1.5716144]
[1672953331470,55.14,13.612,13.604,1.5716144]
[1672953332850,20.0,13.611,13.604,1.5716144]
[1672953333575,55.14,13.612,13.604,1.5716144]
[1672953335156,18.32,13.61,13.604,1.5716144]
[1672953335997,73.47,13.61,13.604,1.5716144]
[1672953336417,55.15,13.61,13.604,1.5716144]
[1672953336838,20.0,13.611,13.604,1.5716144]
[1672953337039,20.0,13.609,13.604,1.5716144]
[1672953337248,55.15,13.608,13.599,20.0]
[1672953337471,20.0,13.607,13.599,20.0]
[1672953339883,75.15,13.609,13.599,20.0]
[1672953340094,20.0,13.609,13.599,20.0]
[1672953341366,73.55,13.61,13.599,20.0]
[1672953342205,73.55,13.61,13.599,66.76755268]
[1672953342604,163.2326,13.614,13.6,16.14235055]
[1672953342818,108.1026,13.614,13.602,20.0]
[1672953343050,163.2326,13.614,13.603,20.0]
[1672953343655,20.0,13.613,13.603,20.0]
[1672953343871,20.0,13.613,13.602,20.0]
[1672953344707,20.0,13.613,13.602,78.53783407]
[1672953346198,55.14,13.612,13.602,78.53783407]
[1672953346386,75.13,13.613,13.602,78.53783407]
[1672953347362,75.13,13.613,13.602,20.0]
[1672953348315,75.13,13.613,13.598,58.53783407]
[1672953348502,97.54737149,13.613,13.598,58.53783407]
[1672953348717,20.0,13.609,13.598,58.53783407]
[1672953349037,20.0,13.607,13.598,58.53783407]
[1672953349248,55.16,13.606,13.595,46.76755268]
[1672953349459,20.0,13.605,13.595,46.76755268]
[1672953349790,75.16,13.607,13.595,105.30538675]
[1672953350703,55.16,13.607,13.595,105.30538675]
[1672953351991,220.4357,13.608,13.595,105.30538675]
[1672953352722,220.4357,13.608,13.596,20.0]
[1672953353144,109.7293,13.608,13.598,20.0]
[1672953353456,168.3308,13.612,13.6,24.56]
[1672953353677,113.1908,13.612,13.602,20.0]
[1672953353985,113.1908,13.612,13.603,20.0]
[1672953354211,113.1908,13.612,13.603,36.14235055]
[1672953354397,113.1908,13.612,13.604,16.14235055]
[1672953354594,113.1908,13.612,13.605,20.0]
[1672953354801,20.0,13.611,13.605,20.0]
[1672953355231,113.1908,13.612,13.602,20.0]
[1672953355451,113.1908,13.612,13.605,16.14235055]
[1672953356193,20.0,13.611,13.605,16.14235055]
[1672953357137,20.0,13.611,13.602,20.0]
[1672953357325,20.0,13.609,13.602,36.14235055]
[1672953357537,20.0,13.609,13.602,20.0]
[1672953357746,20.0,13.609,13.599,20.0]
[1672953358186,55.15,13.61,13.599,20.0]
[1672953358187,55.15,13.61,13.599,36.14235055]
[1672953358393,20.0,13.609,13.597,46.76755268]
[1672953358604,55.15,13.608,13.593,9.833]
[1672953358802,20.0,13.607,13.598,16.14235055]
[1672953359222,20.0,13.605,13.598,16.14235055]
[1672953359450,55.16,13.606,13.598,16.14235055]
[1672953359983,20.0,13.607,13.598,16.14235055]
[1672953360191,55.16,13.606,13.598,16.14235055]
[1672953360500,20.0,13.605,13.592,115.2542183]
[1672953360693,20.0,13.603,13.592,26.39656885]
[1672953360905,20.0,13.603,13.592,16.14235055]
[1672953361426,20.0,13.601,13.592,16.14235055]
[1672953362494,20.0,13.601,13.593,20.0]
[1672953362710,55.18,13.602,13.593,20.0]
[1672953362919,55.18,13.602,13.594,16.14235055]
[1672953363110,20.0,13.603,13.594,16.14235055]
[1672953363322,20.0,13.603,13.595,20.0]
[1672953363751,20.0,13.603,13.595,36.14235055]
[1672953363946,20.0,13.603,13.595,20.0]
[1672953364158,20.0,13.603,13.596,16.14235055]
[1672953365221,20.0,13.603,13.595,20.0]
[1672953365438,20.0,13.603,13.589,100.36998855]
[1672953365439,20.0,13.603,13.594,16.14235055]
[1672953365656,20.0,13.603,13.595,36.14235055]
[1672953365859,20.0,13.603,13.595,16.14235055]
[1672953367540,55.17,13.604,13.595,16.14235055]
[1672953367961,75.17,13.605,13.595,16.14235055]
[1672953369547,20.0,13.605,13.595,16.14235055]
[1672953376068,20.0,13.603,13.595,16.14235055]
[1672953377118,55.18,13.602,13.595,16.14235055]
[1672953377323,20.0,13.603,13.595,16.14235055]
[1672953377942,55.17,13.604,13.595,16.14235055]
[1672953378273,55.17,13.605,13.596,20.0]
[1672953378464,116.5375,13.606,13.596,20.0]
[1672953378679,116.5375,13.606,13.597,16.14235055]
[1672953379327,116.5375,13.606,13.598,20.0]
[1672953379735,55.14,13.612,13.599,16.14235055]
[1672953380568,20.0,13.611,13.599,16.14235055]
[1672953380779,55.15,13.61,13.599,16.14235055]
[1672953381113,20.0,13.609,13.599,16.14235055]
[1672953381314,55.15,13.608,13.599,16.14235055]
[1672953381628,55.15,13.61,13.599,16.14235055]
[1672953382160,55.14,13.611,13.599,16.14235055]
[1672953382348,112.3808,13.612,13.6,44.39]
[1672953382559,112.3808,13.612,13.602,20.0]
[1672953382777,112.3808,13.612,13.603,20.0]
[1672953382994,112.3808,13.612,13.603,36.14235055]
[1672953383199,112.3808,13.612,13.604,16.14235055]
[1672953383417,112.3808,13.612,13.605,20.0]
[1672953383946,112.3808,13.612,13.606,16.14235055]
[1672953385191,55.13,13.614,13.606,16.14235055]
[1672953385400,173.6738,13.618,13.606,16.14235055]
[1672953386340,173.6738,13.618,13.605,20.0]
[1672953386572,20.0,13.617,13.603,20.0]
[1672953386760,55.12,13.616,13.603,20.0]
[1672953386969,55.12,13.616,13.603,36.14235055]
[1672953388125,55.12,13.617,13.603,36.14235055]
[1672953388988,55.12,13.617,13.603,91.78406029]
[1672953396771,55.12,13.617,13.604,20.0]
[1672953396973,55.12,13.617,13.606,20.0]
[1672953397179,55.12,13.617,13.605,36.14235055]
[1672953405923,55.12,13.617,13.606,36.14235055]
[1672953407822,55.12,13.617,13.607,16.14235055]
[1672953420432,20.0,13.616,13.605,20.0]
[1672953420640,55.13,13.615,13.604,20.0]
[1672953420850,20.0,13.614,13.602,20.0]
[1672953421050,55.13,13.613,13.602,20.0]
[1672953421259,20.0,13.612,13.602,20.0]
[1672953422312,55.13,13.613,13.602,20.0]
[1672953423265,55.13,13.613,13.601,58.61176921]
[1672953423266,18.41,13.61,13.601,58.61176921]
[1672953423462,18.41,13.61,13.599,55.64170974]
[1672953423463,55.15,13.609,13.599,71.78406029]
[1672953423673,20.0,13.608,13.599,71.78406029]
[1672953425268,20.0,13.606,13.599,71.78406029]
[1672953425605,55.16,13.607,13.599,71.78406029]
[1672953425804,20.0,13.608,13.599,16.14235055]
[1672953426315,20.0,13.606,13.595,58.61176921]
[1672953426535,20.0,13.606,13.596,36.14235055]
[1672953426746,20.0,13.606,13.596,16.14235055]
[1672953426944,20.0,13.606,13.597,16.14235055]
[1672953427269,55.16,13.607,13.597,16.14235055]
[1672953427481,55.16,13.607,13.597,71.78406029]
[1672953429996,20.0,13.606,13.597,71.78406029]
[1672953430212,20.0,13.606,13.597,16.14235055]
[1672953430621,20.0,13.606,13.594,118.7333]
[1672953430830,20.0,13.606,13.595,20.0]
[1672953431046,20.0,13.604,13.595,20.0]
[1672953432430,20.0,13.602,13.592,55.64170974]
[1672953432622,20.0,13.6,13.592,55.64170974]
[1672953432833,55.19,13.599,13.592,55.64170974]
[1672953433036,55.19,13.599,13.59,16.14235055]
[1672953433247,20.0,13.598,13.59,16.14235055]
[1672953433458,20.0,13.598,13.588,102.40926242]
[1672953433672,20.0,13.598,13.588,118.55161297]
[1672953434300,20.0,13.598,13.588,71.78406029]
[1672953435460,55.19,13.599,13.588,71.78406029]
[1672953436094,20.0,13.598,13.588,71.78406029]
[1672953437259,55.19,13.599,13.588,71.78406029]
[1672953437461,20.0,13.598,13.589,58.61176921]
[1672953437788,55.2,13.597,13.585,16.14235055]
[1672953437973,20.0,13.596,13.585,16.14235055]
[1672953438184,55.21,13.595,13.585,16.14235055]
[1672953439971,20.0,13.594,13.583,60.33904307]